[Event "Titled Tuesday Blitz February 15 Late 2022"]
[White "Pichot, Alan"]
[Black "Jobava, Baadur"]
[WhiteFideId "110973"]
[BlackFideId "13601520"]
[WhiteElo "2543"]
[BlackElo "2617"]
[Result "1/2-1/2"]
[Round "11"]
[TimeControl "180+1"]
[Date "2022.02.15"]
[WhiteClock "0:00:07"]
[BlackClock "0:00:16"]

1. e4 {[%clk 0:03:00]}  e5 {[%clk 0:03:00]} 2. Nf3 {[%clk 0:03:01]}  Nf6 {[%clk 0:03:00]} 3. Nxe5 {[%clk 0:02:59]}  d6 {[%clk 0:03:01]} 4. Nf3 {[%clk 0:03:00]}  Nxe4 {[%clk 0:03:01]} 5. d4 {[%clk 0:03:01]}  d5 {[%clk 0:03:01]} 6. Bd3 {[%clk 0:03:02]}  Bd6 {[%clk 0:03:02]} 7. O-O {[%clk 0:03:01]}  O-O {[%clk 0:03:02]} 8. c4 {[%clk 0:03:02]}  c6 {[%clk 0:03:02]} 9. Nc3 {[%clk 0:03:02]}  Nxc3 {[%clk 0:03:03]} 10. bxc3 {[%clk 0:03:03]}  dxc4 {[%clk 0:03:01]} 11. Bxc4 {[%clk 0:03:04]}  Nd7 {[%clk 0:03:02]} 12. Re1 {[%clk 0:02:44]}  h6 {[%clk 0:03:00]} 13. Qd3 {[%clk 0:02:41]}  Qf6 {[%clk 0:02:52]} 14. Bb3 {[%clk 0:02:31]}  Rd8 {[%clk 0:02:51]} 15. Qe4 {[%clk 0:02:24]}  Nf8 {[%clk 0:02:47]} 16. Ne5 {[%clk 0:02:24]}  Be6 {[%clk 0:02:46]} 17. Ng4 {[%clk 0:02:11]}  Qf5 {[%clk 0:02:26]} 18. Qxf5 {[%clk 0:01:45]}  Bxf5 {[%clk 0:02:26]} 19. Ne5 {[%clk 0:01:45]}  Be6 {[%clk 0:02:24]} 20. Rb1 {[%clk 0:01:43]}  Rab8 {[%clk 0:02:24]} 21. Bf4 {[%clk 0:01:39]}  Bxb3 {[%clk 0:02:21]} 22. axb3 {[%clk 0:01:38]}  Ne6 {[%clk 0:02:22]} 23. Bg3 {[%clk 0:01:38]}  Bc7 {[%clk 0:02:10]} 24. b4 {[%clk 0:01:36]}  a6 {[%clk 0:02:09]} 25. Nd3 {[%clk 0:01:33]}  Bxg3 {[%clk 0:01:59]} 26. hxg3 {[%clk 0:01:34]}  Kf8 {[%clk 0:01:46]} 27. Re5 {[%clk 0:01:32]}  Nc7 {[%clk 0:01:39]} 28. Nc5 {[%clk 0:01:31]}  Nb5 {[%clk 0:01:33]} 29. Rc1 {[%clk 0:01:30]}  b6 {[%clk 0:01:22]} 30. Nd3 {[%clk 0:01:20]}  Re8 {[%clk 0:01:19]} 31. Rxe8+ {[%clk 0:01:17]}  Kxe8 {[%clk 0:01:16]} 32. Ne5 {[%clk 0:01:18]}  Rc8 {[%clk 0:01:15]} 33. Nc4 {[%clk 0:01:18]}  Rb8 {[%clk 0:01:14]} 34. Ne5 {[%clk 0:01:18]}  Rc8 {[%clk 0:01:12]} 35. f3 {[%clk 0:01:15]}  f6 {[%clk 0:01:10]} 36. Nc4 {[%clk 0:01:15]}  Rb8 {[%clk 0:01:11]} 37. Kf2 {[%clk 0:01:13]}  Kd7 {[%clk 0:01:11]} 38. Ke2 {[%clk 0:01:13]}  Nd6 {[%clk 0:01:10]} 39. Ne3 {[%clk 0:01:00]}  a5 {[%clk 0:01:07]} 40. bxa5 {[%clk 0:00:59]}  bxa5 {[%clk 0:01:08]} 41. Ra1 {[%clk 0:01:00]}  Rb5 {[%clk 0:01:05]} 42. Kd3 {[%clk 0:00:58]}  h5 {[%clk 0:01:05]} 43. Ra3 {[%clk 0:00:52]}  Kc7 {[%clk 0:01:04]} 44. c4 {[%clk 0:00:50]}  Rg5 {[%clk 0:01:04]} 45. c5 {[%clk 0:00:44]}  Nb5 {[%clk 0:01:04]} 46. Rxa5 {[%clk 0:00:43]}  Rxg3 {[%clk 0:01:04]} 47. d5 {[%clk 0:00:27]}  h4 {[%clk 0:01:05]} 48. Ra6 {[%clk 0:00:20]}  cxd5 {[%clk 0:01:02]} 49. Rb6 {[%clk 0:00:20]}  h3 {[%clk 0:00:51]} 50. gxh3 {[%clk 0:00:18]}  Na7 {[%clk 0:00:51]} 51. Nxd5+ {[%clk 0:00:18]}  Kd7 {[%clk 0:00:51]} 52. Rd6+ {[%clk 0:00:14]}  Ke8 {[%clk 0:00:50]} 53. Ke4 {[%clk 0:00:06]}  Rxh3 {[%clk 0:00:48]} 54. c6 {[%clk 0:00:07]}  Rh4+ {[%clk 0:00:48]} 55. f4 {[%clk 0:00:06]}  Nxc6 {[%clk 0:00:45]} 56. Rxc6 {[%clk 0:00:06]}  g5 {[%clk 0:00:46]} 57. Rxf6 {[%clk 0:00:03]}  gxf4 {[%clk 0:00:46]} 58. Nxf4 {[%clk 0:00:04]}  Ke7 {[%clk 0:00:45]} 59. Re6+ {[%clk 0:00:04]}  Kf7 {[%clk 0:00:46]} 60. Ra6 {[%clk 0:00:05]}  Rh1 {[%clk 0:00:43]} 61. Kf5 {[%clk 0:00:05]}  Ke7 {[%clk 0:00:44]} 62. Ra7+ {[%clk 0:00:05]}  Kd6 {[%clk 0:00:44]} 63. Ra2 {[%clk 0:00:06]}  Re1 {[%clk 0:00:43]} 64. Rd2+ {[%clk 0:00:06]}  Kc6 {[%clk 0:00:44]} 65. Nd3 {[%clk 0:00:06]}  Re8 {[%clk 0:00:43]} 66. Ne5+ {[%clk 0:00:06]}  Kc5 {[%clk 0:00:42]} 67. Rd7 {[%clk 0:00:07]}  Rh8 {[%clk 0:00:42]} 68. Rc7+ {[%clk 0:00:06]}  Kd5 {[%clk 0:00:42]} 69. Rd7+ {[%clk 0:00:07]}  Kc5 {[%clk 0:00:42]} 70. Rd1 {[%clk 0:00:07]}  Rh5+ {[%clk 0:00:42]} 71. Kf4 {[%clk 0:00:08]}  Rh4+ {[%clk 0:00:43]} 72. Ng4 {[%clk 0:00:09]}  Rh8 {[%clk 0:00:41]} 73. Ne3 {[%clk 0:00:08]}  Rf8+ {[%clk 0:00:41]} 74. Nf5 {[%clk 0:00:09]}  Re8 {[%clk 0:00:41]} 75. Rc1+ {[%clk 0:00:07]}  Kd5 {[%clk 0:00:41]} 76. Ne3+ {[%clk 0:00:04]}  Kd4 {[%clk 0:00:41]} 77. Rd1+ {[%clk 0:00:05]}  Kc5 {[%clk 0:00:41]} 78. Ng4 {[%clk 0:00:04]}  Re2 {[%clk 0:00:40]} 79. Ne5 {[%clk 0:00:04]}  Rh2 {[%clk 0:00:39]} 80. Ke4 {[%clk 0:00:04]}  Rh4+ {[%clk 0:00:39]} 81. Ke3 {[%clk 0:00:05]}  Rh3+ {[%clk 0:00:39]} 82. Nf3 {[%clk 0:00:05]}  Rh8 {[%clk 0:00:38]} 83. Rd7 {[%clk 0:00:05]}  Re8+ {[%clk 0:00:35]} 84. Kf4 {[%clk 0:00:06]}  Re2 {[%clk 0:00:34]} 85. Nd4 {[%clk 0:00:04]}  Rh2 {[%clk 0:00:32]} 86. Nf3 {[%clk 0:00:03]}  Re2 {[%clk 0:00:31]} 87. Rc7+ {[%clk 0:00:03]}  Kd6 {[%clk 0:00:31]} 88. Rc1 {[%clk 0:00:04]}  Re8 {[%clk 0:00:29]} 89. Rd1+ {[%clk 0:00:05]}  Kc5 {[%clk 0:00:29]} 90. Ne5 {[%clk 0:00:05]}  Rh8 {[%clk 0:00:30]} 91. Ke4 {[%clk 0:00:05]}  Rh4+ {[%clk 0:00:30]} 92. Kf5 {[%clk 0:00:05]}  Rh5+ {[%clk 0:00:30]} 93. Kf6 {[%clk 0:00:06]}  Rh6+ {[%clk 0:00:30]} 94. Ng6 {[%clk 0:00:06]}  Rh2 {[%clk 0:00:28]} 95. Nf4 {[%clk 0:00:06]}  Kc4 {[%clk 0:00:25]} 96. Ke5 {[%clk 0:00:06]}  Kc3 {[%clk 0:00:23]} 97. Rd8 {[%clk 0:00:06]}  Rc2 {[%clk 0:00:19]} 98. Ke4 {[%clk 0:00:06]}  Kc4 {[%clk 0:00:16]} 99. Nd5 {[%clk 0:00:05]}  Re2+ {[%clk 0:00:15]} 100. Ne3+ {[%clk 0:00:05]}  Kc5 {[%clk 0:00:16]} 101. Kd3 {[%clk 0:00:03]}  Rh2 {[%clk 0:00:16]} 102. Rd5+ {[%clk 0:00:04]}  Kc6 {[%clk 0:00:16]} 103. Rg5 {[%clk 0:00:05]}  Rh4 {[%clk 0:00:16]} 104. Nc4 {[%clk 0:00:05]}  Rh3+ {[%clk 0:00:16]} 105. Kd4 {[%clk 0:00:05]}  Rh4+ {[%clk 0:00:17]} 106. Kc3 {[%clk 0:00:06]}  Kd7 {[%clk 0:00:16]} 107. Ne5+ {[%clk 0:00:06]}  Ke6 {[%clk 0:00:16]} 108. Nd3 {[%clk 0:00:07]} 1/2-1/2


[Site "https://www.chess.com"]

[Event "Titled Tuesday Blitz February 15 Late 2022"]
[White "Pinto, Daniel"]
[Black "Quirke, Jeffrey"]
[WhiteFideId "3303144"]
[BlackFideId "2013029"]
[WhiteElo "1938"]
[BlackElo "2198"]
[Result "1-0"]
[Round "11"]
[TimeControl "180+1"]
[Date "2022.02.16"]
[WhiteClock "0:00:10"]
[BlackClock "0:00:02"]

1. e4 {[%clk 0:03:00]}  c5 {[%clk 0:02:59]} 2. Nf3 {[%clk 0:02:59]}  e6 {[%clk 0:03:00]} 3. d4 {[%clk 0:02:59]}  cxd4 {[%clk 0:03:00]} 4. Nxd4 {[%clk 0:02:59]}  a6 {[%clk 0:03:01]} 5. Nc3 {[%clk 0:02:59]}  b5 {[%clk 0:03:00]} 6. Bd3 {[%clk 0:02:56]}  Bb7 {[%clk 0:03:00]} 7. O-O {[%clk 0:02:55]}  Nc6 {[%clk 0:03:00]} 8. Be3 {[%clk 0:02:53]}  Ne5 {[%clk 0:02:59]} 9. Be2 {[%clk 0:02:34]}  b4 {[%clk 0:02:39]} 10. f4 {[%clk 0:02:33]}  Ng6 {[%clk 0:02:15]} 11. f5 {[%clk 0:02:28]}  Ne5 {[%clk 0:02:14]} 12. Bf4 {[%clk 0:02:12]}  Nc6 {[%clk 0:01:08]} 13. Na4 {[%clk 0:00:51]}  Qa5 {[%clk 0:01:08]} 14. b3 {[%clk 0:00:47]}  e5 {[%clk 0:00:39]} 15. Nxc6 {[%clk 0:00:46]}  Bxc6 {[%clk 0:00:40]} 16. Bg3 {[%clk 0:00:46]}  Bxa4 {[%clk 0:00:38]} 17. bxa4 {[%clk 0:00:47]}  Bc5+ {[%clk 0:00:36]} 18. Kh1 {[%clk 0:00:45]}  Bd4 {[%clk 0:00:32]} 19. Rb1 {[%clk 0:00:39]}  Nf6 {[%clk 0:00:31]} 20. Bh4 {[%clk 0:00:29]}  Nxe4 {[%clk 0:00:29]} 21. Bf3 {[%clk 0:00:19]}  Nc3 {[%clk 0:00:26]} 22. Qd3 {[%clk 0:00:16]}  Rc8 {[%clk 0:00:18]} 23. Rbe1 {[%clk 0:00:16]}  O-O {[%clk 0:00:17]} 24. f6 {[%clk 0:00:15]}  g6 {[%clk 0:00:11]} 25. Qd2 {[%clk 0:00:15]}  Kh8 {[%clk 0:00:07]} 26. Bg5 {[%clk 0:00:15]}  Qxa4 {[%clk 0:00:04]} 27. Bh6 {[%clk 0:00:14]}  Rg8 {[%clk 0:00:05]} 28. Bg7+ {[%clk 0:00:13]}  Rxg7 {[%clk 0:00:04]} 29. fxg7+ {[%clk 0:00:14]}  Kxg7 {[%clk 0:00:04]} 30. Be4 {[%clk 0:00:10]}  f5 {[%clk 0:00:02]} 31. Qg5 {[%clk 0:00:10]} 1-0


[Site "https://www.chess.com"]

[Event "Titled Tuesday Blitz February 15 Late 2022"]
[White "Reprintsev, Alexander"]
[Black "Gerbelli Neto, Eduardo"]
[WhiteFideId "14100541"]
[BlackFideId "2103281"]
[WhiteElo "2126"]
[BlackElo "2178"]
[Result "0-1"]
[Round "11"]
[TimeControl "180+1"]
[Date "2022.02.16"]
[WhiteClock "0:00:09"]
[BlackClock "0:02:25"]

1. e4 {[%clk 0:02:54]}  e5 {[%clk 0:02:59]} 2. f4 {[%clk 0:02:53]}  Nc6 {[%clk 0:02:59]} 3. Nf3 {[%clk 0:02:52]}  f5 {[%clk 0:03:00]} 4. exf5 {[%clk 0:02:48]}  e4 {[%clk 0:03:00]} 5. Ne5 {[%clk 0:02:46]}  Nxe5 {[%clk 0:03:00]} 6. fxe5 {[%clk 0:02:44]}  Qe7 {[%clk 0:03:01]} 7. Qh5+ {[%clk 0:02:26]}  Kd8 {[%clk 0:03:01]} 8. d4 {[%clk 0:02:24]}  exd3 {[%clk 0:03:01]} 9. Bg5 {[%clk 0:02:24]}  Nf6 {[%clk 0:03:02]} 10. Bxf6 {[%clk 0:02:00]}  gxf6 {[%clk 0:02:58]} 11. Bxd3 {[%clk 0:01:11]}  Qxe5+ {[%clk 0:02:46]} 12. Kd2 {[%clk 0:00:28]}  Qxb2 {[%clk 0:02:40]} 13. Qf7 {[%clk 0:00:16]}  Bb4+ {[%clk 0:02:39]} 14. Ke2 {[%clk 0:00:12]}  Re8+ {[%clk 0:02:36]} 15. Kf3 {[%clk 0:00:09]}  Qxa1 {[%clk 0:02:26]} 16. c3 {[%clk 0:00:09]}  Bxc3 {[%clk 0:02:25]} 0-1


[Site "https://www.chess.com"]

[Event "Titled Tuesday Blitz February 15 Late 2022"]
[White "Romero Ruscalleda, Josep"]
[Black "Musovic, Armin"]
[WhiteFideId "2231859"]
[BlackFideId "939935"]
[WhiteElo "2433"]
[BlackElo "2250"]
[Result "1/2-1/2"]
[Round "11"]
[TimeControl "180+1"]
[Date "2022.02.16"]
[WhiteClock "0:00:12"]
[BlackClock "0:00:16"]

1. e4 {[%clk 0:03:00]}  c6 {[%clk 0:02:59]} 2. Nc3 {[%clk 0:03:00]}  d5 {[%clk 0:03:00]} 3. Nf3 {[%clk 0:03:00]}  dxe4 {[%clk 0:03:00]} 4. Nxe4 {[%clk 0:03:00]}  Nf6 {[%clk 0:03:01]} 5. Qe2 {[%clk 0:03:00]}  Nxe4 {[%clk 0:03:01]} 6. Qxe4 {[%clk 0:03:00]}  Qd5 {[%clk 0:03:02]} 7. Qh4 {[%clk 0:03:00]}  Qe6+ {[%clk 0:03:02]} 8. Be2 {[%clk 0:02:59]}  Qg4 {[%clk 0:03:03]} 9. Qg3 {[%clk 0:02:59]}  Qxg3 {[%clk 0:03:04]} 10. hxg3 {[%clk 0:02:59]}  g6 {[%clk 0:03:05]} 11. d4 {[%clk 0:02:57]}  Bg7 {[%clk 0:03:05]} 12. Bh6 {[%clk 0:02:54]}  Kf8 {[%clk 0:02:59]} 13. O-O-O {[%clk 0:02:53]}  Bxh6+ {[%clk 0:02:58]} 14. Rxh6 {[%clk 0:02:52]}  Kg7 {[%clk 0:02:59]} 15. Rdh1 {[%clk 0:02:51]}  Bg4 {[%clk 0:02:58]} 16. Kd2 {[%clk 0:02:44]}  Bh5 {[%clk 0:02:56]} 17. R6xh5 {[%clk 0:02:39]}  gxh5 {[%clk 0:02:56]} 18. Rxh5 {[%clk 0:02:39]}  Nd7 {[%clk 0:02:51]} 19. Bd3 {[%clk 0:02:38]}  h6 {[%clk 0:02:47]} 20. c3 {[%clk 0:02:37]}  Rad8 {[%clk 0:02:45]} 21. Ke2 {[%clk 0:02:36]}  Nf6 {[%clk 0:02:38]} 22. Re5 {[%clk 0:02:32]}  e6 {[%clk 0:02:33]} 23. Ra5 {[%clk 0:02:22]}  a6 {[%clk 0:02:32]} 24. Ne5 {[%clk 0:02:21]}  h5 {[%clk 0:02:22]} 25. f3 {[%clk 0:02:21]}  h4 {[%clk 0:02:21]} 26. gxh4 {[%clk 0:02:21]}  Rxh4 {[%clk 0:02:19]} 27. Ra3 {[%clk 0:02:18]}  Nd5 {[%clk 0:02:09]} 28. Kf2 {[%clk 0:02:11]}  f6 {[%clk 0:01:55]} 29. Ng4 {[%clk 0:02:04]}  Rh1 {[%clk 0:01:50]} 30. Rb3 {[%clk 0:02:03]}  Rd7 {[%clk 0:01:40]} 31. Kg3 {[%clk 0:01:55]}  Rd1 {[%clk 0:01:28]} 32. Bc4 {[%clk 0:01:37]}  Rd2 {[%clk 0:01:24]} 33. Nf2 {[%clk 0:01:22]}  Ne3 {[%clk 0:01:14]} 34. Bxe6 {[%clk 0:01:17]}  Re7 {[%clk 0:01:04]} 35. Ne4 {[%clk 0:00:55]}  Nf1+ {[%clk 0:01:04]} 36. Kf4 {[%clk 0:00:53]}  Rxe6 {[%clk 0:01:00]} 37. Rxb7+ {[%clk 0:00:51]}  Kg6 {[%clk 0:01:00]} 38. Nxd2 {[%clk 0:00:47]}  Nxd2 {[%clk 0:01:01]} 39. Ra7 {[%clk 0:00:46]}  Re2 {[%clk 0:00:57]} 40. Rxa6 {[%clk 0:00:42]}  Rxg2 {[%clk 0:00:57]} 41. Rxc6 {[%clk 0:00:41]}  Nf1 {[%clk 0:00:51]} 42. b4 {[%clk 0:00:38]}  Rh2 {[%clk 0:00:43]} 43. Ke4 {[%clk 0:00:35]}  Re2+ {[%clk 0:00:34]} 44. Kd3 {[%clk 0:00:33]}  Rxa2 {[%clk 0:00:34]} 45. b5 {[%clk 0:00:33]}  Rd2+ {[%clk 0:00:31]} 46. Ke4 {[%clk 0:00:27]}  Rb2 {[%clk 0:00:32]} 47. b6 {[%clk 0:00:26]}  Kg5 {[%clk 0:00:31]} 48. f4+ {[%clk 0:00:26]}  Kg6 {[%clk 0:00:31]} 49. d5 {[%clk 0:00:25]}  Ng3+ {[%clk 0:00:27]} 50. Kd4 {[%clk 0:00:24]}  Kf5 {[%clk 0:00:24]} 51. d6 {[%clk 0:00:19]}  Nh5 {[%clk 0:00:19]} 52. d7 {[%clk 0:00:16]}  Rd2+ {[%clk 0:00:19]} 53. Kc5 {[%clk 0:00:16]}  Rxd7 {[%clk 0:00:19]} 54. Rd6 {[%clk 0:00:17]}  Rb7 {[%clk 0:00:19]} 55. Kc6 {[%clk 0:00:16]}  Rb8 {[%clk 0:00:19]} 56. Rd5+ {[%clk 0:00:15]}  Kg4 {[%clk 0:00:18]} 57. Rxh5 {[%clk 0:00:14]}  Kxh5 {[%clk 0:00:17]} 58. Kc7 {[%clk 0:00:15]}  Rg8 {[%clk 0:00:17]} 59. b7 {[%clk 0:00:15]}  Kg4 {[%clk 0:00:18]} 60. b8=Q {[%clk 0:00:14]}  Rxb8 {[%clk 0:00:18]} 61. Kxb8 {[%clk 0:00:15]}  Kxf4 {[%clk 0:00:19]} 62. Kc7 {[%clk 0:00:13]}  Ke5 {[%clk 0:00:19]} 63. Kb6 {[%clk 0:00:11]}  Kd5 {[%clk 0:00:16]} 64. Kb5 {[%clk 0:00:09]}  f5 {[%clk 0:00:17]} 65. c4+ {[%clk 0:00:10]}  Kd4 {[%clk 0:00:16]} 66. c5 {[%clk 0:00:10]}  f4 {[%clk 0:00:16]} 67. c6 {[%clk 0:00:10]}  f3 {[%clk 0:00:17]} 68. c7 {[%clk 0:00:11]}  f2 {[%clk 0:00:18]} 69. c8=Q {[%clk 0:00:11]}  f1=Q+ {[%clk 0:00:19]} 70. Kb6 {[%clk 0:00:11]}  Qb1+ {[%clk 0:00:18]} 71. Kc7 {[%clk 0:00:11]}  Qc2+ {[%clk 0:00:17]} 72. Kd8 {[%clk 0:00:12]}  Qxc8+ {[%clk 0:00:16]} 73. Kxc8 {[%clk 0:00:12]} 1/2-1/2


[Site "https://www.chess.com"]

[Event "Titled Tuesday Blitz February 15 Late 2022"]
[White "Sadhwani, Raunak"]
[Black "Michelakos, Panagiotis"]
[WhiteFideId "35093487"]
[BlackFideId "4216067"]
[WhiteElo "2616"]
[BlackElo "2140"]
[Result "1-0"]
[Round "11"]
[TimeControl "180+1"]
[Date "2022.02.15"]
[WhiteClock "0:00:17"]
[BlackClock "0:00:01"]

1. d4 {[%clk 0:03:00]}  d5 {[%clk 0:02:53]} 2. Nf3 {[%clk 0:03:00]}  c5 {[%clk 0:02:53]} 3. dxc5 {[%clk 0:02:59]}  e6 {[%clk 0:02:51]} 4. Be3 {[%clk 0:02:56]}  Nf6 {[%clk 0:02:44]} 5. c3 {[%clk 0:02:55]}  Qc7 {[%clk 0:02:33]} 6. b4 {[%clk 0:02:45]}  a5 {[%clk 0:02:29]} 7. Nbd2 {[%clk 0:02:40]}  Nbd7 {[%clk 0:02:14]} 8. a3 {[%clk 0:02:29]}  Be7 {[%clk 0:01:28]} 9. Bg5 {[%clk 0:02:28]}  O-O {[%clk 0:01:26]} 10. e3 {[%clk 0:02:27]}  h6 {[%clk 0:01:26]} 11. Bh4 {[%clk 0:02:23]}  b6 {[%clk 0:01:25]} 12. Bg3 {[%clk 0:02:23]}  e5 {[%clk 0:01:22]} 13. c6 {[%clk 0:01:34]}  Qxc6 {[%clk 0:01:16]} 14. Rc1 {[%clk 0:01:35]}  Qe6 {[%clk 0:01:11]} 15. Bb5 {[%clk 0:01:32]}  Bb7 {[%clk 0:01:10]} 16. O-O {[%clk 0:01:32]}  Rfd8 {[%clk 0:01:06]} 17. Qb3 {[%clk 0:01:23]}  Bd6 {[%clk 0:00:37]} 18. h3 {[%clk 0:01:19]}  g6 {[%clk 0:00:28]} 19. Rfe1 {[%clk 0:01:07]}  e4 {[%clk 0:00:28]} 20. Nd4 {[%clk 0:01:07]}  Qe7 {[%clk 0:00:29]} 21. Bc6 {[%clk 0:01:06]}  Bxg3 {[%clk 0:00:23]} 22. Bxb7 {[%clk 0:01:03]}  Bd6 {[%clk 0:00:18]} 23. Bxa8 {[%clk 0:00:59]}  Rxa8 {[%clk 0:00:18]} 24. c4 {[%clk 0:00:54]}  Qe5 {[%clk 0:00:14]} 25. Nf1 {[%clk 0:00:53]}  axb4 {[%clk 0:00:07]} 26. axb4 {[%clk 0:00:53]}  Qh5 {[%clk 0:00:03]} 27. Nc6 {[%clk 0:00:51]}  Rc8 {[%clk 0:00:02]} 28. b5 {[%clk 0:00:50]}  Nc5 {[%clk 0:00:02]} 29. Qd1 {[%clk 0:00:48]}  Nd3 {[%clk 0:00:02]} 30. Qxh5 {[%clk 0:00:48]}  Nxh5 {[%clk 0:00:03]} 31. cxd5 {[%clk 0:00:48]}  Nxe1 {[%clk 0:00:03]} 32. Rxe1 {[%clk 0:00:46]}  Nf6 {[%clk 0:00:04]} 33. Nd2 {[%clk 0:00:44]}  Kg7 {[%clk 0:00:04]} 34. Nc4 {[%clk 0:00:44]}  Bc5 {[%clk 0:00:04]} 35. d6 {[%clk 0:00:41]}  Nd7 {[%clk 0:00:03]} 36. Ra1 {[%clk 0:00:40]}  Kf6 {[%clk 0:00:02]} 37. Nd2 {[%clk 0:00:33]}  Kf5 {[%clk 0:00:01]} 38. g4+ {[%clk 0:00:31]}  Ke6 {[%clk 0:00:01]} 39. Nxe4 {[%clk 0:00:32]}  f5 {[%clk 0:00:02]} 40. Nxc5+ {[%clk 0:00:27]}  Nxc5 {[%clk 0:00:02]} 41. gxf5+ {[%clk 0:00:24]}  gxf5 {[%clk 0:00:03]} 42. Nd4+ {[%clk 0:00:20]}  Kxd6 {[%clk 0:00:02]} 43. Nxf5+ {[%clk 0:00:21]}  Ke5 {[%clk 0:00:03]} 44. Nxh6 {[%clk 0:00:21]}  Ke4 {[%clk 0:00:03]} 45. Kg2 {[%clk 0:00:21]}  Ne6 {[%clk 0:00:01]} 46. Ng4 {[%clk 0:00:20]}  Rc2 {[%clk 0:00:01]} 47. Ra6 {[%clk 0:00:17]} 1-0


[Site "https://www.chess.com"]

[Event "Titled Tuesday Blitz February 15 Late 2022"]
[White "Sarana, Alexey"]
[Black "Koziorowicz, Michal"]
[WhiteFideId "24133795"]
[BlackFideId "21809194"]
[WhiteElo "2665"]
[BlackElo "2166"]
[Result "1-0"]
[Round "11"]
[TimeControl "180+1"]
[Date "2022.02.15"]
[WhiteClock "0:01:17"]
[BlackClock "0:00:09"]

1. e4 {[%clk 0:03:00]}  c5 {[%clk 0:03:00]} 2. Nf3 {[%clk 0:02:58]}  d6 {[%clk 0:03:00]} 3. d4 {[%clk 0:02:58]}  cxd4 {[%clk 0:03:01]} 4. Nxd4 {[%clk 0:02:59]}  Nf6 {[%clk 0:03:02]} 5. Nc3 {[%clk 0:02:59]}  g6 {[%clk 0:03:02]} 6. Be3 {[%clk 0:02:58]}  Bg7 {[%clk 0:03:03]} 7. f3 {[%clk 0:02:56]}  O-O {[%clk 0:03:04]} 8. Qd2 {[%clk 0:02:57]}  Nc6 {[%clk 0:03:04]} 9. O-O-O {[%clk 0:02:56]}  d5 {[%clk 0:03:05]} 10. exd5 {[%clk 0:02:55]}  Nxd5 {[%clk 0:03:05]} 11. Nxc6 {[%clk 0:02:55]}  bxc6 {[%clk 0:03:06]} 12. Bd4 {[%clk 0:02:56]}  Bxd4 {[%clk 0:03:07]} 13. Qxd4 {[%clk 0:02:56]}  Qb6 {[%clk 0:03:05]} 14. Na4 {[%clk 0:02:55]}  Qa5 {[%clk 0:03:05]} 15. b3 {[%clk 0:02:55]}  Qc7 {[%clk 0:03:06]} 16. Bc4 {[%clk 0:02:54]}  Rd8 {[%clk 0:03:01]} 17. Kb2 {[%clk 0:02:50]}  Be6 {[%clk 0:02:58]} 18. Nc5 {[%clk 0:02:40]}  Nf4 {[%clk 0:02:57]} 19. Nxe6 {[%clk 0:02:36]}  Nxe6 {[%clk 0:02:57]} 20. Qe3 {[%clk 0:02:36]}  Qf4 {[%clk 0:02:53]} 21. Qxf4 {[%clk 0:02:33]}  Nxf4 {[%clk 0:02:54]} 22. g3 {[%clk 0:02:33]}  Nd5 {[%clk 0:02:54]} 23. Rhe1 {[%clk 0:02:32]}  e6 {[%clk 0:02:51]} 24. a4 {[%clk 0:02:33]}  Kg7 {[%clk 0:02:50]} 25. Rd4 {[%clk 0:02:31]}  Kf6 {[%clk 0:02:49]} 26. Bd3 {[%clk 0:02:30]}  h5 {[%clk 0:02:46]} 27. Rc4 {[%clk 0:02:30]}  Rd6 {[%clk 0:02:45]} 28. Rc5 {[%clk 0:02:30]}  Rad8 {[%clk 0:02:40]} 29. Be4 {[%clk 0:02:25]}  Ne7 {[%clk 0:02:30]} 30. Re3 {[%clk 0:02:23]}  Rd2 {[%clk 0:02:27]} 31. h4 {[%clk 0:02:24]}  R8d6 {[%clk 0:02:22]} 32. Rec3 {[%clk 0:02:23]}  Rf2 {[%clk 0:02:15]} 33. f4 {[%clk 0:02:16]}  Nd5 {[%clk 0:01:59]} 34. Rd3 {[%clk 0:02:12]}  Rf1 {[%clk 0:01:53]} 35. c4 {[%clk 0:02:02]}  Rf2+ {[%clk 0:00:45]} 36. Kc1 {[%clk 0:01:56]}  Rf1+ {[%clk 0:00:45]} 37. Kd2 {[%clk 0:01:56]}  Rg1 {[%clk 0:00:41]} 38. cxd5 {[%clk 0:01:56]}  cxd5 {[%clk 0:00:40]} 39. Ke2 {[%clk 0:01:52]}  Rb6 {[%clk 0:00:37]} 40. Kf2 {[%clk 0:01:51]}  Rb1 {[%clk 0:00:36]} 41. Bf3 {[%clk 0:01:47]}  Rb2+ {[%clk 0:00:34]} 42. Be2 {[%clk 0:01:47]}  Kf5 {[%clk 0:00:28]} 43. Rb5 {[%clk 0:01:43]}  Rc6 {[%clk 0:00:28]} 44. Ke3 {[%clk 0:01:35]}  Rc1 {[%clk 0:00:25]} 45. Bf3 {[%clk 0:01:34]}  f6 {[%clk 0:00:19]} 46. Kd4 {[%clk 0:01:27]}  Rg1 {[%clk 0:00:17]} 47. Be4+ {[%clk 0:01:21]}  Kg4 {[%clk 0:00:17]} 48. Bxg6 {[%clk 0:01:21]}  Rxg3 {[%clk 0:00:16]} 49. Bxh5+ {[%clk 0:01:19]}  Kxf4 {[%clk 0:00:16]} 50. Rxg3 {[%clk 0:01:19]}  Kxg3 {[%clk 0:00:17]} 51. Bf7 {[%clk 0:01:19]}  e5+ {[%clk 0:00:17]} 52. Kxd5 {[%clk 0:01:20]}  Kxh4 {[%clk 0:00:17]} 53. a5 {[%clk 0:01:18]}  Kg5 {[%clk 0:00:17]} 54. a6 {[%clk 0:01:18]}  Kf4 {[%clk 0:00:17]} 55. Rb7 {[%clk 0:01:18]}  e4 {[%clk 0:00:17]} 56. Rxa7 {[%clk 0:01:17]}  Ra2 {[%clk 0:00:17]} 57. Kc5 {[%clk 0:01:16]}  e3 {[%clk 0:00:17]} 58. Bc4 {[%clk 0:01:17]}  e2 {[%clk 0:00:10]} 59. Re7 {[%clk 0:01:17]}  Kf3 {[%clk 0:00:09]} 60. Rxe2 {[%clk 0:01:17]} 1-0


[Site "https://www.chess.com"]